{"text_format":"1","workbook":"xlsx","n_sheets":1,"sheets":["Report"],"not_rendered":{"charts":0,"images":0,"macros":0,"external_links":6,"defined_names":1338,"comments":0,"pivot_tables":0},"unopened":[],"bounds":{"document_bytes":16777216,"sheet_cells":100000,"rows_first":2000,"rows_last":500,"rows_between":2000,"halvings":0,"cell_chars":16384,"cell_head_chars":4096},"cells_cut":0,"cells_raw":0,"read":"whole","date_system":"1900"}

{"sheet":"Report","index":0,"n_rows":150,"n_cols":5,"rows_kept":150,"cut":false,"hidden":false,"merged":[[109,3,109,4],[119,3,119,4],[129,3,129,4],[139,0,139,4],[144,0,144,4],[149,3,149,4],[81,0,81,4],[82,3,82,4],[86,0,86,4],[91,0,91,4],[98,0,98,4],[99,3,99,4],[67,0,67,4],[68,3,68,4],[72,3,72,4],[74,0,74,4],[75,3,75,4],[79,3,79,4],[53,0,53,4],[54,3,54,4],[58,3,58,4],[60,0,60,4],[61,3,61,4],[65,3,65,4],[39,0,39,4],[40,3,40,4],[44,3,44,4],[46,0,46,4],[47,3,47,4],[51,3,51,4],[11,0,11,4],[29,0,29,4],[30,3,30,4],[32,0,32,4],[33,3,33,4],[37,3,37,4],[0,0,2,2],[0,3,0,4],[1,3,1,4],[3,0,3,4],[4,0,4,4],[6,0,6,4]]}
[{"$f":"'[1]Для проверки'!B2","v":"ул. Белинского 78"},null,null,"Утв. приказом Минстроя России"]
[null,null,null,"от 22 декабря 2014 г. № 882/пр"]
[]
["Отчет об исполнении АО \"ДК Нижегородского района\" договора управления, "]
["а также отчет о выполнении смет доходов и расходов за 2017 год"]
[]
["Параметры формы"]
["№ п/п","Наименование параметра","Ед. изм.","Наименование показателя","Информация"]
[1,"Дата заполнения/внесения изменений","—","Дата заполнения/внесения изменений","2018-03-14"]
[2,"Дата начала отчетного периода","—","Дата начала отчетного периода","2017-01-01"]
[3,"Дата конца отчетного периода","—","Дата конца отчетного периода","2017-12-31"]
["Общая информация о выполняемых работах (оказываемых услугах) по содержанию и текущему ремонту общего имущества в многоквартирном доме"]
[4,"Авансовые платежи потребителей (на начало периода)","руб.","Авансовые платежи потребителей (на начало периода)",{"$f":"'[1]Для проверки'!B6","v":0}]
[5,"Переходящие остатки денежных средств (на начало периода)","руб.","Переходящие остатки денежных средств (на начало периода)",{"$f":"'[1]Для проверки'!B7","v":0}]
[6,"Задолженность потребителей (на начало периода)","руб.","Задолженность потребителей (на начало периода)",{"$f":"'[1]Для проверки'!B8","v":5456.8400000000129}]
[7,"Начислено за услуги (работы) по содержанию и текущему ремонту, в том числе:","руб.","Начислено за услуги (работы) по содержанию и текущему ремонту",{"$f":"'[1]Для проверки'!B9","v":31238.65}]
[8,"— за содержание дома","руб.","Начислено за содержание дома",{"$f":"'[1]Для проверки'!B10","v":29631.55}]
[9,"— за текущий ремонт","руб.","Начислено за текущий ремонт",{"$f":"'[1]Для проверки'!B11","v":0}]
[10,"— за услуги управления","руб.","Начислено за услуги управления",{"$f":"'[1]Для проверки'!B12","v":1607.1000000000004}]
[11,"Получено денежных средств, в том числе","руб.","Получено денежных средств",{"$f":"'[1]Для проверки'!B13","v":28650.710000000003}]
[12,"— денежных средств от собственников/нанимателей помещений","руб.","Получено денежных средств от собственников/нанимателей помещений",{"$f":"'[1]Для проверки'!B14","v":28650.710000000003}]
[13,"— целевых взносов от собственников/нанимателей помещений","руб.","Получено целевых взносов от собственников/нанимателей помещений",{"$f":"'[1]Для проверки'!B15","v":0}]
[14,"— субсидий","руб.","Получено субсидий",{"$f":"'[1]Для проверки'!B16","v":0}]
[15,"— денежных средств от использования общего имущества","руб.","Получено денежных средств от использования общего имущества",{"$f":"'[1]Для проверки'!B17","v":0}]
[16,"— прочие поступления","руб.","Прочие поступления",{"$f":"'[1]Для проверки'!B18","v":0}]
[17,"Всего денежных средств с учетом остатков","руб.","Всего денежных средств с учетом остатков",{"$f":"'[1]Для проверки'!B19","v":28650.710000000003}]
[18,"Авансовые платежи потребителей (на конец периода)","руб.","Авансовые платежи потребителей (на конец периода)",{"$f":"'[1]Для проверки'!B20","v":0}]
[19,"Переходящие остатки денежных средств (на конец периода)","руб.","Переходящие остатки денежных средств (на конец периода)",{"$f":"'[1]Для проверки'!B21","v":0}]
[20,"Задолженность потребителей (на конец периода)","руб.","Задолженность потребителей (на конец периода)",{"$f":"'[1]Для проверки'!B22","v":8044.7800000000061}]
["Выполненные работы (оказанные услуги) по содержанию общего имущества и текущему ремонту в отчетном периоде (заполняется по каждому виду работ (услуг))"]
[21,"Наименование работ (услуг)","—","Работы (услуги) по управлению многоквартирным домом  "]
[22,"Годовая фактическая стоимость работ (услуг)","руб.","Годовая фактическая стоимость работ (услуг)",{"$f":"'[1]Для проверки'!C11","v":1607.1000000000004}]
["Детальный перечень выполненных работ (оказанных услуг) в рамках выбранной работы (услуги) (заполняется по каждой выполненной работе (оказанной услуге) в пункте 21 настоящего документа)."]
[23,"Наименование работы (услуги), выполняемой в рамках указанного раздела работ (услуг)","—","Работы (услуги) по управлению многоквартирным домом  "]
[24,"Периодичность выполнения работ (оказания услуг)","—","Периодичность выполнения работ (оказания услуг)","Ежемесячно"]
[25,"Единица измерения","—","Единица измерения"]
[26,"Стоимость на единицу измерения","руб.","Стоимость на единицу измерения"]
[21,"Наименование работ (услуг)","—","Работы по содержанию помещений, входящих в состав общего имущества в многоквартирном доме  "]
[22,"Годовая фактическая стоимость работ (услуг)","руб.","Годовая фактическая стоимость работ (услуг)",{"$f":"'[1]Для проверки'!C6","v":8774.9131723047558}]
["Детальный перечень выполненных работ (оказанных услуг) в рамках выбранной работы (услуги) (заполняется по каждой выполненной работе (оказанной услуге) в пункте 21 настоящего документа)."]
[23,"Наименование работы (услуги), выполняемой в рамках указанного раздела работ (услуг)","—","Работы по содержанию помещений, входящих в состав общего имущества в многоквартирном доме  "]
[24,"Периодичность выполнения работ (оказания услуг)","—","Периодичность выполнения работ (оказания услуг)","Ежемесячно"]
[25,"Единица измерения","—","Единица измерения"]
[26,"Стоимость на единицу измерения","руб.","Стоимость на единицу измерения"]
[21,"Наименование работ (услуг)","—","Прочая работа (услуга)  Текущий ремонт"]
[22,"Годовая фактическая стоимость работ (услуг)","руб.","Годовая фактическая стоимость работ (услуг)",{"$f":"'[1]Для проверки'!C13","v":0}]
["Детальный перечень выполненных работ (оказанных услуг) в рамках выбранной работы (услуги) (заполняется по каждой выполненной работе (оказанной услуге) в пункте 21 настоящего документа)."]
[23,"Наименование работы (услуги), выполняемой в рамках указанного раздела работ (услуг)","—","Прочая работа (услуга)  Текущий ремонт"]
[24,"Периодичность выполнения работ (оказания услуг)","—","Периодичность выполнения работ (оказания услуг)","При проведении текущего ремонта"]
[25,"Единица измерения","—","Единица измерения"]
[26,"Стоимость на единицу измерения","руб.","Стоимость на единицу измерения"]
[21,"Наименование работ (услуг)","—","Работы по содержанию и ремонту систем внутридомового газового оборудования  "]
[22,"Годовая фактическая стоимость работ (услуг)","руб.","Годовая фактическая стоимость работ (услуг)",{"$f":"'[1]Для проверки'!C8","v":687.92667721156602}]
["Детальный перечень выполненных работ (оказанных услуг) в рамках выбранной работы (услуги) (заполняется по каждой выполненной работе (оказанной услуге) в пункте 21 настоящего документа)."]
[23,"Наименование работы (услуги), выполняемой в рамках указанного раздела работ (услуг)","—","Работы по содержанию и ремонту систем внутридомового газового оборудования  "]
[24,"Периодичность выполнения работ (оказания услуг)","—","Периодичность выполнения работ (оказания услуг)","По графику"]
[25,"Единица измерения","—","Единица измерения"]
[26,"Стоимость на единицу измерения","руб.","Стоимость на единицу измерения"]
[21,"Наименование работ (услуг)","—","Обеспечение устранения аварий на внутридомовых инженерных системах в многоквартирном доме  "]
[22,"Годовая фактическая стоимость работ (услуг)","руб.","Годовая фактическая стоимость работ (услуг)",{"$f":"'[1]Для проверки'!C9","v":1297.2331627418107}]
["Детальный перечень выполненных работ (оказанных услуг) в рамках выбранной работы (услуги) (заполняется по каждой выполненной работе (оказанной услуге) в пункте 21 настоящего документа)."]
[23,"Наименование работы (услуги), выполняемой в рамках указанного раздела работ (услуг)","—","Обеспечение устранения аварий на внутридомовых инженерных системах в многоквартирном доме  "]
[24,"Периодичность выполнения работ (оказания услуг)","—","Периодичность выполнения работ (оказания услуг)","По мере выявления"]
[25,"Единица измерения","—","Единица измерения"]
[26,"Стоимость на единицу измерения","руб.","Стоимость на единицу измерения"]
[21,"Наименование работ (услуг)","—","Проведение дератизации и дезинсекции помещений, входящих в состав общего имущества в многоквартирном доме  "]
[22,"Годовая фактическая стоимость работ (услуг)","руб.","Годовая фактическая стоимость работ (услуг)",{"$f":"'[1]Для проверки'!C10","v":371.9545032049607}]
["Детальный перечень выполненных работ (оказанных услуг) в рамках выбранной работы (услуги) (заполняется по каждой выполненной работе (оказанной услуге) в пункте 21 настоящего документа)."]
[23,"Наименование работы (услуги), выполняемой в рамках указанного раздела работ (услуг)","—","Проведение дератизации и дезинсекции помещений, входящих в состав общего имущества в многоквартирном доме  "]
[24,"Периодичность выполнения работ (оказания услуг)","—","Периодичность выполнения работ (оказания услуг)","Ежемесячно"]
[25,"Единица измерения","—","Единица измерения"]
[26,"Стоимость на единицу измерения","руб.","Стоимость на единицу измерения"]
[21,"Наименование работ (услуг)","—","Работы по содержанию и благоустройству земельного участка и иных объектов, предназначенных для обслуживания и эксплуатации МКД."]
[22,"Годовая фактическая стоимость работ (услуг)","руб.","Годовая фактическая стоимость работ (услуг)",{"$f":"'[1]Для проверки'!C12","v":14273.687181665857}]
["Детальный перечень выполненных работ (оказанных услуг) в рамках выбранной работы (услуги) (заполняется по каждой выполненной работе (оказанной услуге) в пункте 21 настоящего документа)."]
[23,"Наименование работы (услуги), выполняемой в рамках указанного раздела работ (услуг)","—","Работы по содержанию и благоустройству земельного участка и иных объектов, предназначенных для обслуживания и эксплуатации МКД."]
[24,"Периодичность выполнения работ (оказания услуг)","—","Периодичность выполнения работ (оказания услуг)","Ежемесячно"]
[25,"Единица измерения","—","Единица измерения"]
[26,"Стоимость на единицу измерения","руб.","Стоимость на единицу измерения"]
[21,"Наименование работ (услуг)","—","Прочая работа (услуга)  Прочее"]
[22,"Годовая фактическая стоимость работ (услуг)","руб.","Годовая фактическая стоимость работ (услуг)",{"$f":"'[1]Для проверки'!C7","v":4225.835302871048}]
["Детальный перечень выполненных работ (оказанных услуг) в рамках выбранной работы (услуги) (заполняется по каждой выполненной работе (оказанной услуге) в пункте 21 настоящего документа)."]
[23,"Наименование работы (услуги), выполняемой в рамках указанного раздела работ (услуг)","—","Прочая работа (услуга)  Прочее"]
[24,"Периодичность выполнения работ (оказания услуг)","—","Периодичность выполнения работ (оказания услуг)","Ежемесячно"]
[25,"Единица измерения","—","Единица измерения"]
[26,"Стоимость на единицу измерения","руб.","Стоимость на единицу измерения"]
["Информация о наличии претензий по качеству выполненных работ (оказанных услуг)"]
[27,"Количество поступивших претензий","ед.","Количество поступивших претензий",{"$f":"'[1]Для проверки'!C15","v":0}]
[28,"Количество удовлетворенных претензий","ед.","Количество удовлетворенных претензий",{"$f":"'[1]Для проверки'!C16","v":0}]
[29,"Количество претензий, в удовлетворении которых отказано","ед.","Количество претензий, в удовлетворении которых отказано",{"$f":"'[1]Для проверки'!C17","v":0}]
[30,"Сумма произведенного перерасчета","руб.","Сумма произведенного перерасчета",{"$f":"'[1]Для проверки'!C18","v":0}]
["Общая информация по предоставленным коммунальным услугам"]
[31,"Авансовые платежи потребителей (на начало периода)","руб.","Авансовые платежи потребителей (на начало периода)",{"$f":"'[1]Для проверки'!F6","v":0}]
[32,"Переходящие остатки денежных средств (на начало периода)","руб.","Переходящие остатки денежных средств (на начало периода)",{"$f":"'[1]Для проверки'!F7","v":0}]
[33,"Задолженность потребителей (на начало периода)","руб.","Задолженность потребителей (на начало периода)",{"$f":"'[1]Для проверки'!F8","v":2448.12}]
[34,"Авансовые платежи потреби-телей (на конец периода)","руб.","Авансовые платежи потребителей (на конец периода)",{"$f":"'[1]Для проверки'!F9","v":0}]
[35,"Переходящие остатки денежных средств (на конец периода)","руб.","Переходящие остатки денежных средств (на конец периода)",{"$f":"'[1]Для проверки'!F10","v":0}]
[36,"Задолженность потребителей (на конец периода)","руб.","Задолженность потребителей (на конец периода)",{"$f":"'[1]Для проверки'!F11","v":3657.6900000000005}]
["Информация о предоставленных коммунальных услугах (заполняется по каждой коммунальной услуге)*"]
[37,"Вид коммунальной услуги","—","Отопление"]
[38,"Единица измерения","—","Единица измерения","Гкал"]
[39,"Общий объем потребления","нат. показ","Общий объем потребления",{"$f":"'[1]Для проверки'!E6","v":0}]
[40,"Начислено потребителям","руб.","Начислено потребителям",{"$f":"'[1]Для проверки'!E7","v":0}]
[41,"Оплачено потребителями","руб.","Оплачено потребителями",{"$f":"'[1]Для проверки'!E8","v":0}]
[42,"Задолженность потребителей","руб.","Задолженность потребителей",{"$f":"'[1]Для проверки'!E9","v":0}]
[43,"Начислено поставщиком (поставщиками) коммунального ресурса","руб.","Начислено поставщиком (поставщиками) коммунального ресурса",{"$f":"'[1]Для проверки'!E10","v":0}]
[44,"Оплачено поставщику (поставщикам) коммунального ресурса","руб.","Оплачено поставщику (поставщикам) коммунального ресурса",{"$f":"'[1]Для проверки'!E11","v":0}]
[45,"Задолженность перед поставщиком (поставщиками) коммунального ресурса","руб.","Задолженность перед поставщиком (поставщиками) коммунального ресурса",{"$f":"'[1]Для проверки'!E12","v":0}]
[46,"Размер пени и штрафов, уплаченных поставщику (поставщикам) коммунального ресурса","руб.","Размер пени и штрафов, уплаченных поставщику (поставщикам) коммунального ресурса",{"$f":"'[1]Для проверки'!E13","v":0}]
[37,"Вид коммунальной услуги","—","Горячее водоснабжение"]
[38,"Единица измерения","—","Единица измерения","куб.м"]
[39,"Общий объем потребления","нат. показ","Общий объем потребления",{"$f":"'[1]Для проверки'!D15","v":0}]
[40,"Начислено потребителям","руб.","Начислено потребителям",{"$f":"'[1]Для проверки'!D16","v":0}]
[41,"Оплачено потребителями","руб.","Оплачено потребителями",{"$f":"'[1]Для проверки'!D17","v":0}]
[42,"Задолженность потребителей","руб.","Задолженность потребителей",{"$f":"'[1]Для проверки'!D18","v":0}]
[43,"Начислено поставщиком (поставщиками) коммунального ресурса","руб.","Начислено поставщиком (поставщиками) коммунального ресурса",{"$f":"'[1]Для проверки'!D19","v":0}]
[44,"Оплачено поставщику (поставщикам) коммунального ресурса","руб.","Оплачено поставщику (поставщикам) коммунального ресурса",{"$f":"'[1]Для проверки'!D20","v":0}]
[45,"Задолженность перед поставщиком (поставщиками) коммунального ресурса","руб.","Задолженность перед поставщиком (поставщиками) коммунального ресурса",{"$f":"'[1]Для проверки'!D21","v":0}]
[46,"Размер пени и штрафов, уплаченных поставщику (поставщикам) коммунального ресурса","руб.","Размер пени и штрафов, уплаченных поставщику (поставщикам) коммунального ресурса",{"$f":"'[1]Для проверки'!D22","v":0}]
[37,"Вид коммунальной услуги","—","Холодное водоснабжение"]
[38,"Единица измерения","—","Единица измерения","куб.м"]
[39,"Общий объем потребления","нат. показ","Общий объем потребления",{"$f":"'[1]Для проверки'!E15","v":1133.296081}]
[40,"Начислено потребителям","руб.","Начислено потребителям",{"$f":"'[1]Для проверки'!E16","v":7582.02}]
[41,"Оплачено потребителями","руб.","Оплачено потребителями",{"$f":"'[1]Для проверки'!E17","v":6927.37}]
[42,"Задолженность потребителей","руб.","Задолженность потребителей",{"$f":"'[1]Для проверки'!E18","v":2123.5100000000002}]
[43,"Начислено поставщиком (поставщиками) коммунального ресурса","руб.","Начислено поставщиком (поставщиками) коммунального ресурса",{"$f":"'[1]Для проверки'!E19","v":7582.02}]
[44,"Оплачено поставщику (поставщикам) коммунального ресурса","руб.","Оплачено поставщику (поставщикам) коммунального ресурса",{"$f":"'[1]Для проверки'!E20","v":7582.02}]
[45,"Задолженность перед поставщиком (поставщиками) коммунального ресурса","руб.","Задолженность перед поставщиком (поставщиками) коммунального ресурса",{"$f":"'[1]Для проверки'!E21","v":0}]
[46,"Размер пени и штрафов, уплаченных поставщику (поставщикам) коммунального ресурса","руб.","Размер пени и штрафов, уплаченных поставщику (поставщикам) коммунального ресурса",{"$f":"'[1]Для проверки'!E22","v":0}]
[37,"Вид коммунальной услуги","—","Водоотведение"]
[38,"Единица измерения","—","Единица измерения","куб.м"]
[39,"Общий объем потребления","нат. показ","Общий объем потребления",{"$f":"'[1]Для проверки'!D6","v":1075.0871810000001}]
[40,"Начислено потребителям","руб.","Начислено потребителям",{"$f":"'[1]Для проверки'!D7","v":5484.12}]
[41,"Оплачено потребителями","руб.","Оплачено потребителями",{"$f":"'[1]Для проверки'!D8","v":4929.2}]
[42,"Задолженность потребителей","руб.","Задолженность потребителей",{"$f":"'[1]Для проверки'!D9","v":1534.18}]
[43,"Начислено поставщиком (поставщиками) коммунального ресурса","руб.","Начислено поставщиком (поставщиками) коммунального ресурса",{"$f":"'[1]Для проверки'!D10","v":5484.12}]
[44,"Оплачено поставщику (поставщикам) коммунального ресурса","руб.","Оплачено поставщику (поставщикам) коммунального ресурса",{"$f":"'[1]Для проверки'!D11","v":5484.12}]
[45,"Задолженность перед поставщиком (поставщиками) коммунального ресурса","руб.","Задолженность перед поставщиком (поставщиками) коммунального ресурса",{"$f":"'[1]Для проверки'!D12","v":0}]
[46,"Размер пени и штрафов, уплаченных поставщику (поставщикам) коммунального ресурса","руб.","Размер пени и штрафов, уплаченных поставщику (поставщикам) коммунального ресурса",{"$f":"'[1]Для проверки'!D13","v":0}]
["Информация о наличии претензий по качеству предоставленных коммунальных услуг"]
[47,"Количество поступивших претензий","ед.","Количество поступивших претензий",{"$f":"'[1]Для проверки'!F13","v":0}]
[48,"Количество удовлетворенных претензий","ед.","Количество удовлетворенных претензий",{"$f":"'[1]Для проверки'!F14","v":0}]
[49,"Количество претензий, в удовлетворении которых отказано","ед.","Количество претензий, в удовлетворении которых отказано",{"$f":"'[1]Для проверки'!F15","v":0}]
[50,"Сумма произведенного перерасчета","руб.","Сумма произведенного перерасчета",{"$f":"'[1]Для проверки'!F16","v":0}]
["Информация о ведении претензионно-исковой работы в отношении потребителей-должников"]
[51,"Направлено претензий потребителям-должникам","ед.","Направлено претензий потребителям-должникам",{"$f":"'[1]Для проверки'!F18","v":34}]
[52,"Направлено исковых заявлений","ед.","Направлено исковых заявлений",{"$f":"'[1]Для проверки'!F19","v":3}]
[53,"Получено денежных средств по результатам претензионно-исковой работы","руб.","Получено денежных средств по результатам претензионно-исковой работы",{"$f":"'[1]Для проверки'!F20","v":0}]
[]
[null,"Генеральный директор",null,"______________________ А.М. Гундоров"]